[Event "*** Titled Tuesday Blitz"]
[Site "Chess.com"]
[Date "2020.05.12"]
[Round "5"]
[White "SharapovEvgeny"]
[Black "ezkybel"]
[Result "0-1"]
[WhiteElo "2371"]
[BlackElo "2516"]
[TimeControl "180+1"]
[EndTime "10:52:22 PDT"]
[Termination "ezkybel won by resignation"]

1. e4 {[%clk 0:02:59.6]} 1... e6 {[%clk 0:02:59.2]} 2. d4 {[%clk 0:02:58.6]}
2... d5 {[%clk 0:02:58.7]} 3. Nc3 {[%clk 0:02:58.7]} 3... Nf6 {[%clk 0:02:56.8]}
4. e5 {[%clk 0:02:57.9]} 4... Ne4 {[%clk 0:02:56.1]} 5. Nxe4 {[%clk 0:02:56.9]}
5... dxe4 {[%clk 0:02:56.2]} 6. Be3 {[%clk 0:02:56.8]} 6... c5 {[%clk
0:02:53.7]} 7. c3 {[%clk 0:02:50.9]} 7... cxd4 {[%clk 0:02:52.9]} 8. Qxd4 {[%clk
0:02:49.1]} 8... Qxd4 {[%clk 0:02:51.8]} 9. Bxd4 {[%clk 0:02:48.6]} 9... Nc6
{[%clk 0:02:52]} 10. Bb5 {[%clk 0:02:47.6]} 10... Bd7 {[%clk 0:02:51.4]} 11.
Bxc6 {[%clk 0:02:46.9]} 11... Bxc6 {[%clk 0:02:52.3]} 12. Ne2 {[%clk 0:02:45.6]}
12... Be7 {[%clk 0:02:49.8]} 13. O-O-O {[%clk 0:02:44.1]} 13... O-O {[%clk
0:02:48.3]} 14. Ng3 {[%clk 0:02:43.2]} 14... f5 {[%clk 0:02:47.3]} 15. exf6
{[%clk 0:02:41.7]} 15... gxf6 {[%clk 0:02:43.9]} 16. Rhe1 {[%clk 0:02:38.9]}
16... f5 {[%clk 0:02:42.7]} 17. Kb1 {[%clk 0:02:37.9]} 17... a5 {[%clk
0:02:42.3]} 18. Ne2 {[%clk 0:02:35.9]} 18... a4 {[%clk 0:02:41.6]} 19. Nf4
{[%clk 0:02:34.6]} 19... Kf7 {[%clk 0:02:40.8]} 20. Be5 {[%clk 0:02:32.4]} 20...
a3 {[%clk 0:02:39]} 21. b3 {[%clk 0:02:31.9]} 21... Ra5 {[%clk 0:02:36.9]} 22.
Bd6 {[%clk 0:02:27.5]} 22... e5 {[%clk 0:02:29.3]} 23. Bxe7 {[%clk 0:02:24]}
23... Kxe7 {[%clk 0:02:30.2]} 24. Ne2 {[%clk 0:02:22.4]} 24... Rc5 {[%clk
0:02:14.6]} 25. c4 {[%clk 0:02:21.7]} 25... b5 {[%clk 0:02:11.3]} 26. cxb5
{[%clk 0:01:50.6]} 26... Bxb5 {[%clk 0:02:12.2]} 27. Ng3 {[%clk 0:01:42.3]}
27... Bd3+ {[%clk 0:02:11]} 28. Ka1 {[%clk 0:01:41.9]} 28... Rc2 {[%clk
0:02:10.3]} 29. f3 {[%clk 0:01:41.9]} 29... Ke6 {[%clk 0:02:00.6]} 30. fxe4
{[%clk 0:01:41.1]} 30... fxe4 {[%clk 0:01:59.9]} 31. Nxe4 {[%clk 0:01:40.7]}
31... Bxe4 {[%clk 0:01:59.6]} 32. Rxe4 {[%clk 0:01:40.5]} 32... Rff2 {[%clk
0:02:00.1]} 0-1

[Event "*** Titled Tuesday Blitz"]
[Site "Chess.com"]
[Date "2020.05.12"]
[Round "5"]
[White "amaidel"]
[Black "Kaua18"]
[Result "1-0"]
[WhiteElo "2540"]
[BlackElo "2320"]
[TimeControl "180+1"]
[EndTime "10:52:25 PDT"]
[Termination "amaidel won by resignation"]

1. Nf3 {[%clk 0:03:00.9]} 1... c5 {[%clk 0:02:25.1]} 2. e4 {[%clk 0:03:00.2]}
2... Nc6 {[%clk 0:02:23.8]} 3. Bb5 {[%clk 0:02:59.7]} 3... g6 {[%clk 0:02:23.7]}
4. Bxc6 {[%clk 0:02:59.6]} 4... dxc6 {[%clk 0:02:24.6]} 5. Nc3 {[%clk
0:02:59.6]} 5... Bg7 {[%clk 0:02:25]} 6. h3 {[%clk 0:02:59.6]} 6... Nf6 {[%clk
0:02:24.8]} 7. d3 {[%clk 0:02:59.6]} 7... O-O {[%clk 0:02:24.6]} 8. Be3 {[%clk
0:02:59.4]} 8... Nd7 {[%clk 0:02:23.8]} 9. Qd2 {[%clk 0:02:59.6]} 9... Re8
{[%clk 0:02:23.8]} 10. O-O {[%clk 0:02:56.2]} 10... e5 {[%clk 0:02:23.5]} 11.
Bh6 {[%clk 0:02:55.7]} 11... Bh8 {[%clk 0:02:23.4]} 12. Ne2 {[%clk 0:02:53.9]}
12... Nf8 {[%clk 0:02:22]} 13. a3 {[%clk 0:02:53.2]} 13... Ne6 {[%clk
0:02:21.5]} 14. b4 {[%clk 0:02:52.7]} 14... b6 {[%clk 0:02:08.1]} 15. Rfd1
{[%clk 0:02:45.6]} 15... Ba6 {[%clk 0:02:00.6]} 16. Ng5 {[%clk 0:02:38.8]} 16...
Nd4 {[%clk 0:01:55.5]} 17. bxc5 {[%clk 0:02:33.7]} 17... b5 {[%clk 0:01:43.5]}
18. Nxd4 {[%clk 0:02:27.1]} 18... Qxd4 {[%clk 0:01:44.4]} 19. Qb4 {[%clk
0:02:22.7]} 19... Qd8 {[%clk 0:01:27.3]} 20. c3 {[%clk 0:01:56.5]} 20... f6
{[%clk 0:01:12]} 21. Qb3+ {[%clk 0:01:55.1]} 1-0

[Event "*** Titled Tuesday Blitz"]
[Site "Chess.com"]
[Date "2020.05.12"]
[Round "5"]
[White "NotFischer"]
[Black "ZarinaShafigullina"]
[Result "0-1"]
[WhiteElo "2107"]
[BlackElo "2316"]
[TimeControl "180+1"]
[EndTime "10:52:36 PDT"]
[Termination "ZarinaShafigullina won by resignation"]

1. Nf3 {[%clk 0:03:00.9]} 1... Nf6 {[%clk 0:02:59.6]} 2. g3 {[%clk 0:03:00.6]}
2... b6 {[%clk 0:02:59.5]} 3. Bg2 {[%clk 0:03:00.4]} 3... Bb7 {[%clk 0:03:00.4]}
4. O-O {[%clk 0:03:00.3]} 4... c5 {[%clk 0:03:01]} 5. d4 {[%clk 0:02:59]} 5...
cxd4 {[%clk 0:03:00.2]} 6. Nxd4 {[%clk 0:02:59.9]} 6... Bxg2 {[%clk 0:02:56.8]}
7. Kxg2 {[%clk 0:03:00.8]} 7... Qc8 {[%clk 0:02:50.3]} 8. Nc3 {[%clk 0:02:59.2]}
8... Nc6 {[%clk 0:02:50.2]} 9. e4 {[%clk 0:02:57.5]} 9... d6 {[%clk 0:02:40]}
10. Be3 {[%clk 0:02:55.5]} 10... Ne5 {[%clk 0:02:36.1]} 11. f4 {[%clk
0:02:37.5]} 11... Nc4 {[%clk 0:02:35.9]} 12. Bc1 {[%clk 0:02:37.2]} 12... e6
{[%clk 0:02:29.2]} 13. Qf3 {[%clk 0:02:25.2]} 13... Be7 {[%clk 0:02:15.1]} 14.
b3 {[%clk 0:01:59.6]} 14... Na5 {[%clk 0:02:14.5]} 15. e5 {[%clk 0:01:48.5]}
15... Nd7 {[%clk 0:02:10.1]} 16. exd6 {[%clk 0:01:34.6]} 16... Bxd6 {[%clk
0:02:09.9]} 17. Ncb5 {[%clk 0:01:19.9]} 17... Bc5 {[%clk 0:01:42.7]} 18. Qxa8
{[%clk 0:01:03]} 18... Qxa8+ {[%clk 0:01:36.4]} 0-1

[Event "*** Titled Tuesday Blitz"]
[Site "Chess.com"]
[Date "2020.05.12"]
[Round "5"]
[White "tteshan"]
[Black "Lunow"]
[Result "0-1"]
[WhiteElo "2191"]
[BlackElo "2074"]
[TimeControl "180+1"]
[EndTime "10:52:41 PDT"]
[Termination "Lunow won by resignation"]

1. e4 {[%clk 0:03:00.9]} 1... e5 {[%clk 0:02:59.7]} 2. Nf3 {[%clk 0:02:59.8]}
2... Nc6 {[%clk 0:02:59.7]} 3. Bb5 {[%clk 0:02:59.9]} 3... a6 {[%clk 0:02:56.8]}
4. Ba4 {[%clk 0:02:59.9]} 4... Nf6 {[%clk 0:02:54.1]} 5. O-O {[%clk 0:03:00.2]}
5... Be7 {[%clk 0:02:53.7]} 6. Re1 {[%clk 0:02:59.7]} 6... b5 {[%clk 0:02:52.8]}
7. Bb3 {[%clk 0:02:59]} 7... O-O {[%clk 0:02:52.3]} 8. c3 {[%clk 0:02:58.1]}
8... d5 {[%clk 0:02:48.7]} 9. exd5 {[%clk 0:02:56.7]} 9... Nxd5 {[%clk
0:02:49.6]} 10. Nxe5 {[%clk 0:02:52.6]} 10... Nxe5 {[%clk 0:02:50.5]} 11. Rxe5
{[%clk 0:02:52.5]} 11... c6 {[%clk 0:02:51.4]} 12. d4 {[%clk 0:02:51.7]} 12...
Bd6 {[%clk 0:02:49.5]} 13. Re1 {[%clk 0:02:33]} 13... Qh4 {[%clk 0:02:48.9]} 14.
g3 {[%clk 0:02:30.1]} 14... Qh3 {[%clk 0:02:48.6]} 15. Nd2 {[%clk 0:02:28.2]}
15... Bg4 {[%clk 0:02:36]} 16. Qc2 {[%clk 0:02:25.4]} 16... Rae8 {[%clk
0:02:31]} 17. Re4 {[%clk 0:02:03.3]} 17... f5 {[%clk 0:01:59.1]} 18. Re3 {[%clk
0:01:54.5]} 18... f4 {[%clk 0:01:53.5]} 19. Rxe8 {[%clk 0:01:26.9]} 19... Rxe8
{[%clk 0:01:52.9]} 20. f3 {[%clk 0:01:20.9]} 20... fxg3 {[%clk 0:01:42.8]} 21.
Ne4 {[%clk 0:01:10.4]} 21... gxh2+ {[%clk 0:01:35.9]} 0-1

[Event "*** Titled Tuesday Blitz"]
[Site "Chess.com"]
[Date "2020.05.12"]
[Round "5"]
[White "Artem_Sadovsky"]
[Black "smshk35"]
[Result "1-0"]
[WhiteElo "2541"]
[BlackElo "2392"]
[TimeControl "180+1"]
[EndTime "10:52:42 PDT"]
[Termination "Artem_Sadovsky won by resignation"]

1. Nf3 {[%clk 0:02:59.4]} 1... Nf6 {[%clk 0:02:59.4]} 2. g3 {[%clk 0:02:59.5]}
2... g6 {[%clk 0:02:59.8]} 3. Bg2 {[%clk 0:03:00.4]} 3... Bg7 {[%clk 0:03:00.3]}
4. O-O {[%clk 0:03:01.3]} 4... O-O {[%clk 0:03:00.8]} 5. c4 {[%clk 0:03:02]}
5... d6 {[%clk 0:03:01.3]} 6. b3 {[%clk 0:03:02]} 6... Ne4 {[%clk 0:02:56.5]} 7.
d4 {[%clk 0:03:02.5]} 7... c5 {[%clk 0:02:56.6]} 8. Bb2 {[%clk 0:03:03]} 8...
Nc6 {[%clk 0:02:53.1]} 9. e3 {[%clk 0:03:02.9]} 9... cxd4 {[%clk 0:02:47.6]} 10.
Nxd4 {[%clk 0:03:01]} 10... Nxd4 {[%clk 0:02:45.7]} 11. Bxd4 {[%clk 0:03:01.9]}
11... Nf6 {[%clk 0:02:34.2]} 12. Nd2 {[%clk 0:03:00.2]} 12... Qc7 {[%clk
0:02:28]} 13. Rc1 {[%clk 0:02:59.4]} 13... Bg4 {[%clk 0:02:25.7]} 14. Qc2 {[%clk
0:02:46.6]} 14... Rac8 {[%clk 0:02:09.6]} 15. Ne4 {[%clk 0:02:45]} 15... Bf5
{[%clk 0:01:51.7]} 16. Nxf6+ {[%clk 0:02:40.9]} 16... Bxf6 {[%clk 0:01:50.6]}
17. Qb2 {[%clk 0:02:41.4]} 17... Bxd4 {[%clk 0:01:46]} 18. exd4 {[%clk
0:02:36.4]} 18... Qd7 {[%clk 0:01:42.2]} 19. Rfe1 {[%clk 0:02:34.9]} 19... e6
{[%clk 0:01:34.2]} 20. Qe2 {[%clk 0:02:30.7]} 20... d5 {[%clk 0:01:28.4]} 21. g4
{[%clk 0:02:25.7]} 21... dxc4 {[%clk 0:01:21.6]} 22. gxf5 {[%clk 0:02:04]} 22...
gxf5 {[%clk 0:01:14.2]} 23. Rxc4 {[%clk 0:02:00.5]} 23... Rxc4 {[%clk
0:01:07.1]} 24. Qxc4 {[%clk 0:02:01.4]} 24... Rc8 {[%clk 0:01:06]} 25. Qd3
{[%clk 0:02:01.5]} 25... b6 {[%clk 0:01:05.4]} 26. d5 {[%clk 0:01:58.7]} 26...
Rd8 {[%clk 0:00:58.3]} 27. Qg3+ {[%clk 0:01:58.6]} 27... Kf8 {[%clk 0:00:55.8]}
28. Qg5 {[%clk 0:01:56]} 1-0

[Event "*** Titled Tuesday Blitz"]
[Site "Chess.com"]
[Date "2020.05.12"]
[Round "5"]
[White "KingChess345"]
[Black "S_Kalvaitis"]
[Result "1-0"]
[WhiteElo "2229"]
[BlackElo "2375"]
[TimeControl "180+1"]
[EndTime "10:52:53 PDT"]
[Termination "KingChess345 won by resignation"]

1. d4 {[%clk 0:03:00.9]} 1... Nf6 {[%clk 0:02:59.2]} 2. Nf3 {[%clk 0:03:01.8]}
2... e6 {[%clk 0:02:59.3]} 3. g3 {[%clk 0:03:02.7]} 3... d5 {[%clk 0:02:58.7]}
4. Bg2 {[%clk 0:03:03.6]} 4... Be7 {[%clk 0:02:59.1]} 5. O-O {[%clk 0:03:04.3]}
5... O-O {[%clk 0:02:59.2]} 6. c4 {[%clk 0:03:05.2]} 6... dxc4 {[%clk
0:02:59.1]} 7. Qc2 {[%clk 0:03:05.7]} 7... a6 {[%clk 0:02:59]} 8. Qxc4 {[%clk
0:03:06.2]} 8... b5 {[%clk 0:02:58.5]} 9. Qc2 {[%clk 0:03:06.7]} 9... Bb7 {[%clk
0:02:59]} 10. Bf4 {[%clk 0:03:07.1]} 10... Nc6 {[%clk 0:02:58.6]} 11. Nc3 {[%clk
0:03:06.5]} 11... Nxd4 {[%clk 0:02:50]} 12. Nxd4 {[%clk 0:03:07.4]} 12... Bxg2
{[%clk 0:02:50]} 13. Rfd1 {[%clk 0:03:07.4]} 13... Bb7 {[%clk 0:02:21.3]} 14.
Nxe6 {[%clk 0:02:49.8]} 14... Qc8 {[%clk 0:02:21.3]} 15. Nxf8 {[%clk 0:02:45.4]}
15... Qh3 {[%clk 0:02:19.8]} 16. e4 {[%clk 0:02:21.1]} 16... Ng4 {[%clk
0:02:15.9]} 17. Nd5 {[%clk 0:01:45.6]} 17... Nxh2 {[%clk 0:01:38]} 18. Nxe7+
{[%clk 0:01:08.4]} 18... Kxf8 {[%clk 0:01:36.8]} 19. Qe2 {[%clk 0:01:08.7]}
19... Ng4 {[%clk 0:01:24.4]} 20. f3 {[%clk 0:01:08.7]} 1-0

[Event "*** Titled Tuesday Blitz"]
[Site "Chess.com"]
[Date "2020.05.12"]
[Round "5"]
[White "Leonid_Starozhilov"]
[Black "WonderChampion"]
[Result "1-0"]
[WhiteElo "2642"]
[BlackElo "1891"]
[TimeControl "180+1"]
[EndTime "10:52:56 PDT"]
[Termination "Leonid_Starozhilov won by checkmate"]

1. e4 {[%clk 0:03:00.9]} 1... c5 {[%clk 0:02:59.4]} 2. Nf3 {[%clk 0:03:01.2]}
2... g6 {[%clk 0:02:59]} 3. c4 {[%clk 0:03:00.7]} 3... Bg7 {[%clk 0:02:57.7]} 4.
d4 {[%clk 0:03:01]} 4... cxd4 {[%clk 0:02:56.5]} 5. Nxd4 {[%clk 0:03:01.9]} 5...
Nc6 {[%clk 0:02:48.6]} 6. Be3 {[%clk 0:03:00.1]} 6... Nf6 {[%clk 0:02:45]} 7.
Nc3 {[%clk 0:02:59.1]} 7... Nxd4 {[%clk 0:02:44.6]} 8. Bxd4 {[%clk 0:02:58.7]}
8... d6 {[%clk 0:02:44.8]} 9. Be2 {[%clk 0:02:58]} 9... O-O {[%clk 0:02:44.6]}
10. O-O {[%clk 0:02:57.8]} 10... a5 {[%clk 0:02:43.1]} 11. Rc1 {[%clk
0:02:57.4]} 11... Be6 {[%clk 0:02:38.3]} 12. b3 {[%clk 0:02:50.2]} 12... Nd7
{[%clk 0:02:13.2]} 13. Bxg7 {[%clk 0:02:41.7]} 13... Kxg7 {[%clk 0:02:13.3]} 14.
f4 {[%clk 0:02:41.9]} 14... f5 {[%clk 0:02:05.3]} 15. exf5 {[%clk 0:02:33.6]}
15... Bxf5 {[%clk 0:02:01.2]} 16. Qd4+ {[%clk 0:02:21.3]} 16... Nf6 {[%clk
0:01:58.1]} 17. Bf3 {[%clk 0:02:18.2]} 17... Qd7 {[%clk 0:01:49.4]} 18. Rfe1
{[%clk 0:02:13.1]} 18... Rfc8 {[%clk 0:01:40.4]} 19. Nd5 {[%clk 0:02:04.3]}
19... Ra6 {[%clk 0:01:11.8]} 20. Rxe7+ {[%clk 0:02:02]} 20... Qxe7 {[%clk
0:01:10]} 21. Nxe7 {[%clk 0:02:02.9]} 21... Re8 {[%clk 0:01:08.9]} 22. Nxf5+
{[%clk 0:01:58.6]} 22... gxf5 {[%clk 0:01:08.3]} 23. Bxb7 {[%clk 0:01:58]} 23...
Raa8 {[%clk 0:01:03.3]} 24. Bxa8 {[%clk 0:01:57.8]} 24... Rxa8 {[%clk
0:01:04.2]} 25. Re1 {[%clk 0:01:57.5]} 25... Rf8 {[%clk 0:01:00]} 26. Re7+
{[%clk 0:01:56.2]} 26... Rf7 {[%clk 0:01:00.5]} 27. Qxd6 {[%clk 0:01:56]} 27...
Rxe7 {[%clk 0:00:59]} 28. Qxe7+ {[%clk 0:01:56.9]} 28... Kg6 {[%clk 0:00:59.6]}
29. c5 {[%clk 0:01:56.6]} 29... Nd5 {[%clk 0:00:58.3]} 30. Qd6+ {[%clk
0:01:56.8]} 30... Nf6 {[%clk 0:00:58.7]} 31. c6 {[%clk 0:01:56.9]} 31... Kf7
{[%clk 0:00:58.7]} 32. Qxf6+ {[%clk 0:01:56.8]} 32... Kxf6 {[%clk 0:00:58.5]}
33. c7 {[%clk 0:01:57.7]} 33... Kg6 {[%clk 0:00:59.2]} 34. c8=Q {[%clk
0:01:58.6]} 34... Kh5 {[%clk 0:01:00]} 35. Qxf5+ {[%clk 0:01:58.2]} 35... Kh4
{[%clk 0:01:00.9]} 36. Qg5# {[%clk 0:01:58.9]} 1-0

[Event "*** Titled Tuesday Blitz"]
[Site "Chess.com"]
[Date "2020.05.12"]
[Round "5"]
[White "Haykoooo0o"]
[Black "diablanni"]
[Result "1-0"]
[WhiteElo "2480"]
[BlackElo "2304"]
[TimeControl "180+1"]
[EndTime "10:52:58 PDT"]
[Termination "Haykoooo0o won by resignation"]

1. d4 {[%clk 0:02:55.6]} 1... Nf6 {[%clk 0:02:58.8]} 2. c4 {[%clk 0:02:55.9]}
2... c5 {[%clk 0:02:57.8]} 3. Nf3 {[%clk 0:02:51]} 3... cxd4 {[%clk 0:02:57.7]}
4. Nxd4 {[%clk 0:02:51.1]} 4... Nc6 {[%clk 0:02:57.5]} 5. Nc3 {[%clk 0:02:50.9]}
5... g6 {[%clk 0:02:57.8]} 6. g3 {[%clk 0:02:50.7]} 6... d6 {[%clk 0:02:56.4]}
7. Bg2 {[%clk 0:02:51.1]} 7... Bd7 {[%clk 0:02:56.8]} 8. O-O {[%clk 0:02:51.1]}
8... Bg7 {[%clk 0:02:57]} 9. e4 {[%clk 0:02:48.6]} 9... Nxd4 {[%clk 0:02:52.2]}
10. Qxd4 {[%clk 0:02:47.6]} 10... Bc6 {[%clk 0:02:52.6]} 11. Qd2 {[%clk
0:02:44.2]} 11... O-O {[%clk 0:02:51.8]} 12. Rb1 {[%clk 0:02:39.9]} 12... a5
{[%clk 0:02:46.7]} 13. b3 {[%clk 0:02:39.7]} 13... Nd7 {[%clk 0:02:43.3]} 14.
Bb2 {[%clk 0:02:39.8]} 14... Nc5 {[%clk 0:02:41.5]} 15. Nd5 {[%clk 0:02:37.4]}
15... Bxb2 {[%clk 0:02:28]} 16. Qxb2 {[%clk 0:02:38.3]} 16... e5 {[%clk
0:02:27.7]} 17. Rfd1 {[%clk 0:02:34.7]} 17... Ne6 {[%clk 0:02:25.5]} 18. Ne3
{[%clk 0:02:31.8]} 18... Qe7 {[%clk 0:02:16.4]} 19. Rd2 {[%clk 0:02:22.5]} 19...
Nc5 {[%clk 0:01:59.9]} 20. f3 {[%clk 0:02:20.8]} 20... f5 {[%clk 0:01:55.4]} 21.
exf5 {[%clk 0:02:09.2]} 21... gxf5 {[%clk 0:01:54.7]} 22. Rbd1 {[%clk
0:02:08.4]} 22... Rad8 {[%clk 0:01:51.6]} 23. Nd5 {[%clk 0:02:08.6]} 23... Qg7
{[%clk 0:01:44.2]} 24. f4 {[%clk 0:02:05.9]} 24... e4 {[%clk 0:01:29.9]} 25.
Qxg7+ {[%clk 0:02:05.7]} 25... Kxg7 {[%clk 0:01:29.9]} 26. Ne3 {[%clk
0:02:05.7]} 26... Nd3 {[%clk 0:01:25.2]} 27. Bf1 {[%clk 0:02:05.7]} 27... Nb4
{[%clk 0:01:14.3]} 28. a3 {[%clk 0:01:59.3]} 28... Na6 {[%clk 0:01:14.1]} 29.
Rxd6 {[%clk 0:01:56.1]} 29... Rxd6 {[%clk 0:01:13.5]} 30. Rxd6 {[%clk
0:01:52.6]} 1-0

[Event "*** Titled Tuesday Blitz"]
[Site "Chess.com"]
[Date "2020.05.12"]
[Round "5"]
[White "grzechu96"]
[Black "guillembaches"]
[Result "1-0"]
[WhiteElo "2597"]
[BlackElo "2411"]
[TimeControl "180+1"]
[EndTime "10:53:00 PDT"]
[Termination "grzechu96 won by resignation"]

1. e4 {[%clk 0:03:00.9]} 1... c5 {[%clk 0:02:58.9]} 2. Nf3 {[%clk 0:03:00.7]}
2... d6 {[%clk 0:02:59.4]} 3. Bb5+ {[%clk 0:03:00.5]} 3... Bd7 {[%clk
0:02:58.7]} 4. Bxd7+ {[%clk 0:03:00.8]} 4... Qxd7 {[%clk 0:02:59.6]} 5. c4
{[%clk 0:03:00.5]} 5... Nc6 {[%clk 0:02:58.7]} 6. d4 {[%clk 0:03:00.4]} 6...
cxd4 {[%clk 0:02:58.1]} 7. Nxd4 {[%clk 0:03:01.3]} 7... Nf6 {[%clk 0:02:55.5]}
8. Nc3 {[%clk 0:03:01.6]} 8... g6 {[%clk 0:02:55.6]} 9. f3 {[%clk 0:03:00.9]}
9... Bg7 {[%clk 0:02:55.4]} 10. Be3 {[%clk 0:03:01.3]} 10... O-O {[%clk
0:02:54.5]} 11. O-O {[%clk 0:03:01.6]} 11... a6 {[%clk 0:02:48.1]} 12. a4 {[%clk
0:02:44.7]} 12... e6 {[%clk 0:02:47.8]} 13. Nxc6 {[%clk 0:02:24.9]} 13... bxc6
{[%clk 0:02:35.5]} 14. a5 {[%clk 0:02:24.6]} 14... e5 {[%clk 0:02:18.7]} 15. Qd3
{[%clk 0:02:17.7]} 15... Qe6 {[%clk 0:02:13.3]} 16. Rfd1 {[%clk 0:02:17.2]}
16... Rfd8 {[%clk 0:02:13]} 17. b4 {[%clk 0:02:10.2]} 17... Rac8 {[%clk
0:01:52.3]} 18. b5 {[%clk 0:02:08.6]} 18... cxb5 {[%clk 0:01:41.4]} 19. cxb5
{[%clk 0:02:09.5]} 19... Qc4 {[%clk 0:01:38.8]} 20. Qxc4 {[%clk 0:01:59.5]}
20... Rxc4 {[%clk 0:01:39.7]} 21. Na4 {[%clk 0:01:54.4]} 21... axb5 {[%clk
0:01:21.2]} 22. Nb6 {[%clk 0:01:54.5]} 22... Rc3 {[%clk 0:01:16.9]} 23. Bf2
{[%clk 0:01:44.1]} 1-0

[Event "*** Titled Tuesday Blitz"]
[Site "Chess.com"]
[Date "2020.05.12"]
[Round "5"]
[White "Rhinos1"]
[Black "Islamovqaasim"]
[Result "1-0"]
[WhiteElo "2191"]
[BlackElo "2324"]
[TimeControl "180+1"]
[EndTime "10:53:07 PDT"]
[Termination "Rhinos1 won by checkmate"]

1. e4 {[%clk 0:03:00.9]} 1... b6 {[%clk 0:02:59.8]} 2. d3 {[%clk 0:02:57.6]}
2... Bb7 {[%clk 0:03:00.7]} 3. Nd2 {[%clk 0:02:57.8]} 3... e6 {[%clk 0:03:00.8]}
4. g3 {[%clk 0:02:57.2]} 4... d5 {[%clk 0:03:00.7]} 5. Bg2 {[%clk 0:02:57.1]}
5... dxe4 {[%clk 0:03:00.6]} 6. dxe4 {[%clk 0:02:56.8]} 6... Nf6 {[%clk
0:02:59.7]} 7. Ne2 {[%clk 0:02:57]} 7... Bc5 {[%clk 0:02:59.2]} 8. O-O {[%clk
0:02:56.5]} 8... O-O {[%clk 0:02:59.6]} 9. c3 {[%clk 0:02:56.8]} 9... e5 {[%clk
0:02:58]} 10. h3 {[%clk 0:02:54.5]} 10... Be7 {[%clk 0:02:57]} 11. Qc2 {[%clk
0:02:51.5]} 11... c5 {[%clk 0:02:57]} 12. a4 {[%clk 0:02:50.5]} 12... Nc6 {[%clk
0:02:56.7]} 13. Nc4 {[%clk 0:02:50]} 13... a6 {[%clk 0:02:49.5]} 14. Rd1 {[%clk
0:02:43.4]} 14... Qc7 {[%clk 0:02:48]} 15. Be3 {[%clk 0:02:36.3]} 15... b5
{[%clk 0:02:46.6]} 16. axb5 {[%clk 0:02:37.2]} 16... axb5 {[%clk 0:02:47.5]} 17.
Nd2 {[%clk 0:02:37.5]} 17... h6 {[%clk 0:02:39.6]} 18. f4 {[%clk 0:02:27.9]}
18... Bd6 {[%clk 0:02:23.5]} 19. f5 {[%clk 0:02:21.5]} 19... Rxa1 {[%clk
0:02:18.4]} 20. Rxa1 {[%clk 0:02:22.4]} 20... Ra8 {[%clk 0:02:19]} 21. Rxa8+
{[%clk 0:02:18.3]} 21... Bxa8 {[%clk 0:02:19.9]} 22. g4 {[%clk 0:02:13.1]} 22...
Na5 {[%clk 0:02:19.1]} 23. g5 {[%clk 0:01:56.2]} 23... hxg5 {[%clk 0:02:13]} 24.
Bxg5 {[%clk 0:01:57.1]} 24... Bc6 {[%clk 0:02:11]} 25. Qd3 {[%clk 0:01:42.7]}
25... Be7 {[%clk 0:01:54.8]} 26. Ng3 {[%clk 0:01:31.7]} 26... Qb7 {[%clk
0:01:47]} 27. b4 {[%clk 0:01:19.5]} 27... cxb4 {[%clk 0:01:39.2]} 28. cxb4
{[%clk 0:01:20.4]} 28... Bxb4 {[%clk 0:01:36.9]} 29. Bxf6 {[%clk 0:01:20.5]}
29... gxf6 {[%clk 0:01:35.3]} 30. Qd8+ {[%clk 0:01:20.1]} 30... Kg7 {[%clk
0:01:30.9]} 31. Nh5+ {[%clk 0:01:19.9]} 31... Kh6 {[%clk 0:01:28.7]} 32. Qxf6+
{[%clk 0:01:18.8]} 32... Kxh5 {[%clk 0:01:28.4]} 33. Bf3# {[%clk 0:01:19]} 1-0

[Event "*** Titled Tuesday Blitz"]
[Site "Chess.com"]
[Date "2020.05.12"]
[Round "5"]
[White "SpasKozhuharov"]
[Black "OhanyanEminChess"]
[Result "1-0"]
[WhiteElo "2671"]
[BlackElo "2470"]
[TimeControl "180+1"]
[EndTime "10:53:12 PDT"]
[Termination "SpasKozhuharov won by resignation"]

1. c4 {[%clk 0:03:00.9]} 1... Nf6 {[%clk 0:02:59.5]} 2. Nc3 {[%clk 0:03:00.5]}
2... g6 {[%clk 0:02:57.4]} 3. e4 {[%clk 0:02:59.3]} 3... d6 {[%clk 0:02:47.6]}
4. d4 {[%clk 0:02:59.6]} 4... Bg7 {[%clk 0:02:46.3]} 5. f3 {[%clk 0:03:00.5]}
5... O-O {[%clk 0:02:45.8]} 6. Be3 {[%clk 0:03:01.1]} 6... b6 {[%clk 0:02:45.8]}
7. Bd3 {[%clk 0:02:59.9]} 7... a6 {[%clk 0:02:45.6]} 8. Nge2 {[%clk 0:02:59.8]}
8... c5 {[%clk 0:02:45.5]} 9. O-O {[%clk 0:02:59.5]} 9... Nbd7 {[%clk 0:02:45]}
10. b3 {[%clk 0:02:58.1]} 10... Rb8 {[%clk 0:02:44.7]} 11. Qd2 {[%clk
0:02:53.7]} 11... Qc7 {[%clk 0:02:13]} 12. Rac1 {[%clk 0:02:45.7]} 12... e5
{[%clk 0:01:54.4]} 13. dxe5 {[%clk 0:02:40.4]} 13... Nxe5 {[%clk 0:01:54.3]} 14.
Bb1 {[%clk 0:02:33.9]} 14... Bb7 {[%clk 0:01:53.3]} 15. h3 {[%clk 0:02:31.3]}
15... Rbd8 {[%clk 0:01:52.8]} 16. f4 {[%clk 0:02:30.5]} 16... Ned7 {[%clk
0:01:47.3]} 17. Ng3 {[%clk 0:02:27.2]} 17... Rfe8 {[%clk 0:01:47.2]} 18. Rce1
{[%clk 0:02:26.6]} 18... Re7 {[%clk 0:01:31.1]} 19. f5 {[%clk 0:02:21.2]} 19...
Ne5 {[%clk 0:01:29.5]} 20. Bh6 {[%clk 0:02:20.8]} 20... Bc8 {[%clk 0:00:57.5]}
21. Bxg7 {[%clk 0:02:11.3]} 21... Kxg7 {[%clk 0:00:57.4]} 22. fxg6 {[%clk
0:02:12.2]} 22... Be6 {[%clk 0:00:27.5]} 23. Qg5 {[%clk 0:02:06.1]} 23... Ned7
{[%clk 0:00:19.4]} 24. gxh7+ {[%clk 0:01:58.1]} 24... Kxh7 {[%clk 0:00:17.8]}
25. e5+ {[%clk 0:01:58.2]} 1-0